fUSD/lending_fUSD_20250208
["ID","MTS","AMOUNT","RATE_DAILY","PERIOD"]
[352250860,1739017837472,-500.0,0.0001012,2]
[352250861,1739017837482,-409.89077675,0.00010121,2]
[352250862,1739017837492,-658.68,0.00010121,2]
[352250863,1739017837502,-500.0,0.00010121,2]
[352250864,1739017837511,-500.0,0.00010121,2]
[352250865,1739017837521,-917.66,0.00010121,2]
[352250866,1739017837530,-697.92540425,0.00010121,2]
[352250867,1739017837578,-511.64104008,0.00010121,2]
[352250868,1739017837636,-464.24355567,0.00010121,2]
[352250869,1739017837645,-500.0,0.00010121,2]
[352250870,1739017837654,-85.75643433,0.00010121,2]
[352251036,1739017839525,-414.24356567,0.00010121,2]
[352251038,1739017839535,-441.61144333,0.00010121,2]
[352251044,1739017839584,-66.89855667,0.00010121,2]
[352251046,1739017839593,-393.95949835,0.00010121,2]
[352251052,1739017839643,-308.20050165,0.00010121,2]
[352251054,1739017839652,-1668.40106091,0.00010121,2]
[352251213,1739017841154,-647.90893909,0.00010121,2]
[352251215,1739017841163,-299.82052091,0.00010121,2]
[352251659,1739017845619,-500.0,0.0001012,2]
[352251661,1739017845629,-147.06,0.0001012,2]
[352251667,1739017845676,-766.29,0.0001012,2]
[352251669,1739017845686,-500.0,0.0001012,2]
[352251671,1739017845694,-421.81947909,0.00010121,2]
[352251673,1739017845704,-1051.98,0.00010121,2]
[352251675,1739017845713,-146.77475691,0.00010121,2]
[352251684,1739017845793,-1189.33499715,0.00010121,2]
[352252129,1739018318739,1000.0,0.0002,120]
[352252139,1739019031774,-926.19,8.219e-05,2]
[352252140,1739019031784,-163.2,8.825e-05,2]
[352252141,1739019031793,-200.0,8.874e-05,2]
[352252142,1739019031803,-500.0,8.912e-05,2]
[352252143,1739019031811,-671.01,8.968e-05,2]
[352252144,1739019031822,-5000.0,8.973e-05,2]
[352252145,1739019031832,-1105.68,8.991e-05,2]
[352252146,1739019031842,-23900.0,9.053e-05,2]
[352252147,1739019031851,-393.25,9.198e-05,2]
[352252148,1739019031859,-500.0,9.234e-05,2]
[352252149,1739019031870,-150.0,9.26e-05,2]
[352252150,1739019031879,-250.0,9.297e-05,2]
[352252151,1739019031888,-590.62,9.333e-05,2]
[352252152,1739019031897,-150.0,9.37e-05,2]
[352252153,1739019031908,-150.0,9.37e-05,2]
[352252154,1739019031917,-438.25,9.37e-05,2]
[352252155,1739019031926,-438.55,9.37e-05,2]
[352252156,1739019031936,-174.58,9.409e-05,2]
[352252157,1739019031945,-164.79,9.412e-05,2]
[352252158,1739019031955,-131.55794804,9.468e-05,2]
[352252159,1739019031974,-18.44205196,9.468e-05,2]
[352252160,1739019031983,-421.68688115,9.562e-05,2]
[352252161,1739019031994,-78.31311885,9.562e-05,2]
[352252162,1739019032003,-500.0,9.736e-05,2]
[352252163,1739019032012,-64.27372193,0.00010055,2]
[352252164,1739019032039,-767.21627807,0.00010055,2]
[352252165,1739019032048,-150.0,0.00010118,2]
[352252166,1739019032057,-500.0,0.00010118,2]
[352252167,1739019032066,-500.0,0.00010118,2]
[352252168,1739019032075,-500.0,0.00010118,2]
[352252169,1739019032084,-816.95,0.00010118,2]
[352252170,1739019032094,-188.48695875,0.00010119,2]
[352252171,1739019032103,-333.73132273,0.00010119,2]
[352252172,1739019032112,-500.0,0.00010119,2]
[352252173,1739019032121,-500.0,0.00010119,2]
[352252174,1739019032132,-500.0,0.00010119,2]
[352252175,1739019032141,-500.0,0.00010119,2]
[352252176,1739019032150,-500.0,0.00010119,2]
[352252177,1739019032160,-221.18889842,0.00010119,2]
[352252179,1739019032169,-260.62307674,0.00010119,2]
[352252181,1739019032181,-239.37692326,0.00010119,2]
[352252183,1739019032190,-38.55067674,0.00010119,2]
[352252187,1739019032236,-273.88901672,0.00010119,2]
[352252188,1739019032245,-500.0,0.00010119,2]
[352252189,1739019032254,-454.4677395,0.00010119,2]
[352252215,1739019037694,-599.04,0.00010118,2]
[352252217,1739019037703,-45.5322605,0.00010119,2]
[352252219,1739019037712,-500.0,0.00010119,2]
[352252221,1739019037721,-500.0,0.00010119,2]
[352252223,1739019037731,-500.0,0.00010119,2]
[352252224,1739019037739,-625.34086442,0.00010119,2]
[352252226,1739019037748,-500.0,0.00010119,2]
[352252228,1739019037757,-506.82983127,0.00010119,2]
[352252229,1739019037766,-500.0,0.00010119,2]
[352252230,1739019037776,-500.0,0.00010119,2]
[352252231,1739019037785,-500.0,0.00010119,2]
[352252232,1739019037794,-500.0,0.00010119,2]
[352252233,1739019037803,-502.18312941,0.00010119,2]
[352252235,1739019037813,-500.0,0.00010119,2]
[352252237,1739019037822,-502.27964358,0.00010119,2]
[352252239,1739019037830,-500.0,0.00010119,2]
[352252241,1739019037840,-312.79213971,0.00010119,2]
[352252243,1739019037849,-500.0,0.00010119,2]
[352252245,1739019037858,-515.97,0.00010119,2]
[352252247,1739019037867,-500.0,0.00010119,2]
[352252249,1739019037877,-578.91249032,0.00010119,2]
[352252250,1739019037886,-500.0,0.00010119,2]
[352252252,1739019037895,-500.0,0.00010119,2]
[352252254,1739019037904,-648.2,0.00010119,2]
[352252256,1739019037913,-500.0,0.00010119,2]
[352252257,1739019037922,-500.0,0.00010119,2]
[352252259,1739019037930,-155.827945,0.00010119,2]
[352252261,1739019037939,-500.0,0.00010119,2]
[352252263,1739019037948,-3008.63252,0.00010119,2]
[352252265,1739019037957,-500.0,0.00010119,2]
[352252267,1739019037966,-2728.309725,0.00010119,2]
[352252269,1739019037975,-500.0,0.00010119,2]
[352252271,1739019037984,-3964.16,0.00010119,2]
[352252273,1739019037993,-500.0,0.00010119,2]
[352252275,1739019038002,-500.0,0.00010119,2]
[352252276,1739019038011,-500.0,0.00010119,2]
[352252278,1739019038020,-162.99054872,0.00010119,2]
[352252280,1739019038030,-500.0,0.00010119,2]
[352252283,1739019038039,-500.0,0.00010119,2]
[352252286,1739019038048,-500.0,0.00010119,2]
[352252289,1739019038058,-500.0,0.00010119,2]
[352252292,1739019038067,-1789.1,0.00010119,2]
[352252295,1739019038076,-500.0,0.00010119,2]
[352252298,1739019038085,-500.0,0.00010119,2]
[352252301,1739019038094,-500.0,0.00010119,2]
[352252304,1739019038104,-500.0,0.00010119,2]
[352252307,1739019038113,-500.0,0.00010119,2]
[352252310,1739019038122,-2632.84,0.00010119,2]
[352252314,1739019038131,-500.0,0.00010119,2]
[352252317,1739019038140,-500.0,0.00010119,2]
[352252320,1739019038149,-1472.27,0.00010119,2]
[352252323,1739019038158,-500.0,0.00010119,2]
[352252326,1739019038167,-500.0,0.00010119,2]
[352252328,1739019038176,-500.0,0.00010119,2]
[352252331,1739019038185,-500.0,0.00010119,2]
[352252334,1739019038195,-1246.73,0.00010119,2]
[352252337,1739019038204,-500.0,0.00010119,2]
[352252340,1739019038213,-500.0,0.00010119,2]
[352252343,1739019038223,-732.86,0.00010119,2]
[352252346,1739019038232,-1635.35,0.00010119,2]
[352252349,1739019038242,-500.0,0.00010119,2]
[352252352,1739019038252,-500.0,0.00010119,2]
[352252355,1739019038261,-305.76138735,0.00010119,2]
[352252358,1739019038270,-957.45,0.00010119,2]
[352252361,1739019038279,-154.500294,0.00010119,2]
[352252364,1739019038288,-500.0,0.00010119,2]
[352252367,1739019038297,-500.0,0.00010119,2]
[352252370,1739019038306,-500.0,0.00010119,2]
[352252373,1739019038315,-498.41488839,0.00010119,2]
[352252376,1739019038324,-505.38539685,0.00010119,2]
[352252379,1739019038334,-2129.11,0.00010119,2]
[352252382,1739019038345,-500.0,0.00010119,2]
[352252385,1739019038354,-500.0,0.00010119,2]
[352252388,1739019038363,-1486.98,0.00010119,2]
[352252391,1739019038372,-500.0,0.00010119,2]
[352252394,1739019038382,-500.0,0.00010119,2]
[352252397,1739019038393,-500.0,0.00010119,2]
[352252400,1739019038402,-719.04,0.00010119,2]
[352252403,1739019038410,-500.0,0.00010119,2]
[352252406,1739019038419,-2812.8,0.00010119,2]
[352252408,1739019038428,-497.40472586,0.00010119,2]
[352252410,1739019038438,-500.0,0.00010119,2]
[352252412,1739019038447,-500.0,0.00010119,2]
[352252414,1739019038456,-500.0,0.00010119,2]
[352252416,1739019038466,-500.0,0.00010119,2]
[352252418,1739019038475,-500.0,0.00010119,2]
[352252420,1739019038484,-500.0,0.00010119,2]
[352252422,1739019038493,-500.0,0.00010119,2]
[352252424,1739019038503,-500.0,0.00010119,2]
[352252426,1739019038512,-500.0,0.00010119,2]
[352252427,1739019038521,-1251.32,0.00010119,2]
[352252430,1739019038530,-500.0,0.00010119,2]
[352252431,1739019038539,-500.0,0.00010119,2]
[352252433,1739019038549,-2408.46,0.00010119,2]
[352252435,1739019038558,-576.34,0.00010119,2]
[352252437,1739019038567,-2049.94,0.00010119,2]
[352252439,1739019038577,-500.0,0.00010119,2]
[352252440,1739019038586,-2596.03,0.00010119,2]
[352252441,1739019038595,-9020.31,0.00010119,2]
[352252443,1739019038604,-500.0,0.00010119,2]
[352252445,1739019038613,-1786.43,0.00010119,2]
[352252447,1739019038622,-694.65,0.00010119,2]
[352252449,1739019038631,-500.0,0.00010119,2]
[352252451,1739019038640,-504.66945719,0.00010119,2]
[352252453,1739019038649,-500.0,0.00010119,2]
[352252455,1739019038659,-1924.37,0.00010119,2]
[352252457,1739019038668,-3419.0,0.00010119,2]
[352252459,1739019038677,-1572.95,0.00010119,2]
[352252461,1739019038686,-500.0,0.00010119,2]
[352252463,1739019038695,-500.0,0.00010119,2]
[352252465,1739019038704,-1504.29,0.00010119,2]
[352252467,1739019038713,-501.90165063,0.00010119,2]
[352252469,1739019038722,-566.43192507,0.00010119,2]
[352252471,1739019038731,-500.0,0.00010119,2]
[352252473,1739019038741,-2063.74,0.00010119,2]
[352252475,1739019038750,-2135.24,0.00010119,2]
[352252477,1739019038763,-530.00362308,0.00010119,2]
[352252479,1739019038778,-500.0,0.00010119,2]
[352252481,1739019038787,-2347.77,0.00010119,2]
[352252483,1739019038797,-3498.02,0.00010119,2]
[352252485,1739019038807,-500.0,0.00010119,2]
[352252487,1739019038816,-500.0,0.00010119,2]
[352252489,1739019038825,-500.0,0.00010119,2]
[352252491,1739019038834,-500.0,0.00010119,2]
[352252493,1739019038844,-2405.82,0.00010119,2]
[352252495,1739019038853,-500.0,0.00010119,2]
[352252497,1739019038863,-500.0,0.00010119,2]
[352252499,1739019038871,-500.0,0.00010119,2]
[352252501,1739019038881,-2856.96,0.00010119,2]
[352252503,1739019038890,-503.75868622,0.00010119,2]
[352252505,1739019038900,-500.0,0.00010119,2]
[352252507,1739019038909,-1222.26,0.00010119,2]
[352252509,1739019038918,-500.0,0.00010119,2]
[352252511,1739019038927,-500.0,0.00010119,2]
[352252513,1739019038936,-2445.85,0.00010119,2]
[352252515,1739019038945,-500.0,0.00010119,2]
[352252517,1739019038954,-503.90278654,0.00010119,2]
[352252519,1739019038963,-1846.25,0.00010119,2]
[352252520,1739019038973,-500.0,0.00010119,2]
[352252522,1739019038984,-500.0,0.00010119,2]
[352252524,1739019038996,-500.0,0.00010119,2]
[352252526,1739019039011,-3417.47,0.00010119,2]
[352252528,1739019039020,-500.0,0.00010119,2]
[352252530,1739019039030,-500.0,0.00010119,2]
[352252532,1739019039040,-1061.22,0.00010119,2]
[352252534,1739019039049,-501.86169803,0.00010119,2]
[352252536,1739019039059,-500.0,0.00010119,2]
[352252538,1739019039068,-500.0,0.00010119,2]
[352252540,1739019039077,-4021.02,0.00010119,2]
[352252542,1739019039087,-6046.06,0.00010119,2]
[352252544,1739019039096,-500.0,0.00010119,2]
[352252546,1739019039105,-3135.85,0.00010119,2]
[352252548,1739019039117,-500.0,0.00010119,2]
[352252550,1739019039126,-2712.34,0.00010119,2]
[352252552,1739019039135,-500.0,0.00010119,2]
[352252554,1739019039144,-504.75001445,0.00010119,2]
[352252556,1739019039153,-503.04787737,0.00010119,2]
[352252558,1739019039162,-500.0,0.00010119,2]
[352252560,1739019039171,-500.0,0.00010119,2]
[352252562,1739019039180,-500.0,0.00010119,2]
[352252564,1739019039189,-500.0,0.00010119,2]
[352252566,1739019039199,-3780.84,0.00010119,2]
[352252568,1739019039208,-500.0,0.00010119,2]
[352252570,1739019039217,-500.0,0.00010119,2]
[352252572,1739019039226,-500.0,0.00010119,2]
[352252574,1739019039235,-500.0,0.00010119,2]
[352252576,1739019039244,-500.0,0.00010119,2]
[352252577,1739019039253,-500.0,0.00010119,2]
[352252579,1739019039262,-500.0,0.00010119,2]
[352252581,1739019039271,-500.0,0.00010119,2]
[352252583,1739019039280,-4117.97,0.00010119,2]
[352252585,1739019039290,-1697.73,0.00010119,2]
[352252587,1739019039299,-500.0,0.00010119,2]
[352252589,1739019039308,-500.0,0.00010119,2]
[352252591,1739019039317,-330.20924497,0.00010119,2]
[352252593,1739019039326,-500.0,0.00010119,2]
[352252595,1739019039335,-500.0,0.00010119,2]
[352252597,1739019039344,-500.0,0.00010119,2]
[352252599,1739019039353,-500.0,0.00010119,2]
[352252601,1739019039362,-1473.95,0.00010119,2]
[352252603,1739019039371,-1832.0,0.00010119,2]
[352252605,1739019039380,-3636.89,0.00010119,2]
[352252607,1739019039391,-500.0,0.00010119,2]
[352252609,1739019039404,-500.0,0.00010119,2]
[352252611,1739019039413,-495.60509145,0.00010119,2]
[352252614,1739019039423,-500.0,0.00010119,2]
[352252615,1739019039431,-500.0,0.00010119,2]
[352252617,1739019039440,-1785.52,0.00010119,2]
[352252619,1739019039449,-500.0,0.00010119,2]
[352252622,1739019039458,-500.0,0.00010119,2]
[352252623,1739019039469,-500.0,0.00010119,2]
[352252625,1739019039478,-501.01493279,0.00010119,2]
[352252627,1739019039487,-500.0,0.00010119,2]
[352252629,1739019039496,-500.0,0.00010119,2]
[352252631,1739019039505,-500.0,0.00010119,2]
[352252633,1739019039514,-4152.92,0.00010119,2]
[352252637,1739019039524,-500.0,0.00010119,2]
[352252640,1739019039534,-500.0,0.00010119,2]
[352252643,1739019039543,-500.0,0.00010119,2]
[352252647,1739019039553,-818.07,0.00010119,2]
[352252650,1739019039562,-500.0,0.00010119,2]
[352252653,1739019039571,-500.0,0.00010119,2]
[352252655,1739019039580,-1570.09,0.00010119,2]
[352252657,1739019039589,-500.0,0.00010119,2]
[352252659,1739019039599,-2671.65,0.00010119,2]
[352252661,1739019039607,-500.0,0.00010119,2]
[352252663,1739019039616,-500.0,0.00010119,2]
[352252665,1739019039625,-500.0,0.00010119,2]
[352252667,1739019039634,-500.0,0.00010119,2]
[352252669,1739019039643,-503.23254815,0.00010119,2]
[352252671,1739019039651,-1029.34,0.00010119,2]
[352252673,1739019039661,-500.0,0.00010119,2]
[352252674,1739019039670,-500.0,0.00010119,2]
[352252677,1739019039679,-500.0,0.00010119,2]
[352252679,1739019039689,-679.98,0.00010119,2]
[352252680,1739019039699,-500.0,0.00010119,2]
[352252683,1739019039708,-500.0,0.00010119,2]
[352252684,1739019039718,-862.4,0.00010119,2]
[352252686,1739019039728,-500.0,0.00010119,2]
[352252688,1739019039738,-500.0,0.00010119,2]
[352252691,1739019039748,-500.0,0.00010119,2]
[352252693,1739019039758,-500.0,0.00010119,2]
[352252694,1739019039767,-1691.54,0.00010119,2]
[352252696,1739019039778,-500.0,0.00010119,2]
[352252699,1739019039787,-500.0,0.00010119,2]
[352252700,1739019039797,-500.0,0.00010119,2]
[352252702,1739019039806,-500.0,0.00010119,2]
[352252705,1739019039815,-500.0,0.00010119,2]
[352252706,1739019039825,-500.0,0.00010119,2]
[352252709,1739019039835,-521.13,0.00010119,2]
[352252711,1739019039845,-500.0,0.00010119,2]
[352252713,1739019039854,-500.0,0.0001012,2]
[352252715,1739019039864,-500.0,0.0001012,2]
[352252717,1739019039874,-500.0,0.0001012,2]
[352252719,1739019039884,-500.0,0.0001012,2]
[352252721,1739019039894,-500.0,0.0001012,2]
[352252723,1739019039903,-500.0,0.0001012,2]
[352252725,1739019039912,-500.0,0.0001012,2]
[352252727,1739019039922,-500.0,0.0001012,2]
[352252729,1739019039931,-500.0,0.0001012,2]
[352252731,1739019039940,-500.0,0.0001012,2]
[352252733,1739019039950,-500.0,0.0001012,2]
[352252735,1739019039960,-500.0,0.0001012,2]
[352252737,1739019039969,-500.0,0.0001012,2]
[352252739,1739019039979,-500.0,0.0001012,2]
[352252741,1739019039988,-500.0,0.0001012,2]
[352252743,1739019039997,-500.0,0.0001012,2]
[352252745,1739019040007,-500.0,0.0001012,2]
[352252747,1739019040016,-500.0,0.0001012,2]
[352252749,1739019040026,-500.0,0.0001012,2]
[352252751,1739019040035,-500.0,0.0001012,2]
[352252753,1739019040046,-500.0,0.0001012,2]
[352252755,1739019040055,-500.0,0.0001012,2]
[352252757,1739019040064,-500.0,0.0001012,2]
[352252785,1739019040303,-500.0,0.0001012,2]
[352252787,1739019040313,-500.0,0.0001012,2]
[352252789,1739019040322,-500.0,0.0001012,2]
[352252791,1739019040331,-500.0,0.0001012,2]
[352252793,1739019040340,-500.0,0.0001012,2]
[352252795,1739019040349,-500.0,0.0001012,2]
[352252797,1739019040358,-500.0,0.0001012,2]
[352252799,1739019040367,-500.0,0.0001012,2]
[352252801,1739019040376,-500.0,0.0001012,2]
[352252803,1739019040385,-500.0,0.0001012,2]
[352252805,1739019040396,-500.0,0.0001012,2]
[352252807,1739019040405,-500.0,0.0001012,2]
[352252809,1739019040415,-500.0,0.0001012,2]
[352252811,1739019040424,-500.0,0.0001012,2]
[352252813,1739019040435,-500.0,0.0001012,2]
[352252815,1739019040443,-500.0,0.0001012,2]
[352252817,1739019040452,-500.0,0.0001012,2]
[352252819,1739019040462,-500.0,0.0001012,2]
[352252821,1739019040476,-500.0,0.0001012,2]
[352252823,1739019040486,-495.05377375,0.0001012,2]
[352252825,1739019040493,-500.0,0.0001012,2]
[352252827,1739019040502,-500.0,0.0001012,2]
[352252829,1739019040511,-517.62242312,0.0001012,2]
[352252831,1739019040520,-500.0,0.0001012,2]
[352252833,1739019040530,-500.0,0.0001012,2]
[352252835,1739019040539,-500.0,0.0001012,2]
[352252837,1739019040548,-500.0,0.0001012,2]
[352252839,1739019040558,-500.0,0.0001012,2]
[352252841,1739019040567,-500.0,0.0001012,2]
[352252843,1739019040576,-578.44955643,0.0001012,2]
[352252845,1739019040585,-517.62060704,0.0001012,2]
[352252848,1739019040595,-500.0,0.0001012,2]
[352252850,1739019040604,-500.0,0.0001012,2]
[352252852,1739019040613,-500.0,0.0001012,2]
[352252854,1739019040622,-500.0,0.0001012,2]
[352252856,1739019040631,-500.0,0.0001012,2]
[352252858,1739019040640,-500.0,0.0001012,2]
[352252860,1739019040650,-500.0,0.0001012,2]
[352252862,1739019040660,-500.0,0.0001012,2]
[352252864,1739019040670,-500.0,0.0001012,2]
[352252866,1739019040679,-500.0,0.0001012,2]
[352252867,1739019040689,-500.0,0.0001012,2]
[352252870,1739019040698,-500.0,0.0001012,2]
[352252872,1739019040707,-500.0,0.0001012,2]
[352252874,1739019040716,-500.0,0.0001012,2]
[352252876,1739019040726,-500.0,0.0001012,2]
[352252878,1739019040735,-500.0,0.0001012,2]
[352252880,1739019040744,-500.0,0.0001012,2]
[352252882,1739019040753,-500.0,0.0001012,2]
[352252884,1739019040762,-500.0,0.0001012,2]
[352252886,1739019040771,-500.0,0.0001012,2]
[352252887,1739019040780,-500.0,0.0001012,2]
[352252890,1739019040789,-500.0,0.0001012,2]
[352252892,1739019040799,-500.0,0.0001012,2]
[352252894,1739019040808,-500.0,0.0001012,2]
[352252896,1739019040817,-546.69,0.0001012,2]
[352252898,1739019040826,-1162.43,0.0001012,2]
[352252900,1739019040836,-500.0,0.0001012,2]
[352252902,1739019040845,-1135.27,0.0001012,2]
[352252904,1739019040853,-500.0,0.0001012,2]
[352252905,1739019040862,-500.0,0.0001012,2]
[352252907,1739019040871,-681.58,0.0001012,2]
[352252909,1739019040880,-500.0,0.0001012,2]
[352252911,1739019040889,-1144.8,0.0001012,2]
[352252913,1739019040898,-500.0,0.0001012,2]
[352252915,1739019040907,-500.0,0.0001012,2]
[352252917,1739019040917,-500.0,0.0001012,2]
[352252919,1739019040925,-500.0,0.0001012,2]
[352252921,1739019040935,-500.0,0.0001012,2]
[352252923,1739019040944,-500.0,0.0001012,2]
[352252925,1739019040953,-500.0,0.0001012,2]
[352252927,1739019040962,-500.0,0.0001012,2]
[352252929,1739019040970,-727.04,0.0001012,2]
[352252931,1739019040980,-500.0,0.0001012,2]
[352252933,1739019040992,-500.0,0.0001012,2]
[352252935,1739019041003,-500.0,0.0001012,2]
[352252937,1739019041013,-810.06,0.0001012,2]
[352252939,1739019041023,-500.0,0.0001012,2]
[352252941,1739019041032,-500.0,0.0001012,2]
[352252943,1739019041041,-811.55,0.0001012,2]
[352252945,1739019041051,-500.0,0.0001012,2]
[352252947,1739019041060,-1783.61,0.0001012,2]
[352252949,1739019041069,-1107.8,0.0001012,2]
[352252951,1739019041079,-500.0,0.0001012,2]
[352252953,1739019041088,-500.0,0.0001012,2]
[352252955,1739019041098,-500.0,0.0001012,2]
[352252957,1739019041107,-500.0,0.0001012,2]
[352252959,1739019041117,-500.0,0.0001012,2]
[352252961,1739019041126,-500.0,0.0001012,2]
[352252963,1739019041135,-500.0,0.0001012,2]
[352252965,1739019041144,-801.13,0.0001012,2]
[352252967,1739019041152,-500.0,0.0001012,2]
[352252969,1739019041161,-500.0,0.0001012,2]
[352252971,1739019041170,-611.29,0.0001012,2]
[352252973,1739019041179,-500.0,0.0001012,2]
[352252975,1739019041188,-500.0,0.0001012,2]
[352252977,1739019041196,-500.0,0.0001012,2]
[352252979,1739019041205,-500.0,0.0001012,2]
[352252981,1739019041215,-500.0,0.0001012,2]
[352252983,1739019041224,-500.0,0.0001012,2]
[352252985,1739019041233,-500.0,0.0001012,2]
[352252986,1739019041242,-1050.84,0.0001012,2]
[352252988,1739019041251,-500.0,0.0001012,2]
[352252990,1739019041259,-700.34,0.0001012,2]
[352252992,1739019041268,-822.05,0.0001012,2]
[352252994,1739019041278,-500.0,0.0001012,2]
[352252996,1739019041287,-500.0,0.0001012,2]
[352252998,1739019041296,-500.0,0.0001012,2]
[352253000,1739019041305,-636.35746883,0.0001012,2]
[352253002,1739019041314,-500.0,0.0001012,2]
[352253004,1739019041323,-273.87285449,0.0001012,2]
[352253006,1739019041332,-596.95,0.0001012,2]
[352253008,1739019041341,-500.0,0.0001012,2]
[352253010,1739019041350,-566.69,0.0001012,2]
[352253012,1739019041359,-500.0,0.0001012,2]
[352253014,1739019041368,-500.0,0.0001012,2]
[352253016,1739019041377,-516.81,0.0001012,2]
[352253018,1739019041389,-500.0,0.0001012,2]
[352253020,1739019041399,-1602.74,0.0001012,2]
[352253022,1739019041408,-655.84,0.0001012,2]
[352253024,1739019041417,-634.65,0.0001012,2]
[352253026,1739019041426,-500.0,0.0001012,2]
[352253028,1739019041437,-784.6,0.0001012,2]
[352253030,1739019041446,-500.0,0.0001012,2]
[352253032,1739019041455,-686.17,0.0001012,2]
[352253034,1739019041466,-1408.14,0.0001012,2]
[352253036,1739019041475,-500.0,0.0001012,2]
[352253038,1739019041485,-505.34133435,0.0001012,2]
[352253040,1739019041494,-500.0,0.0001012,2]
[352253042,1739019041503,-500.0,0.0001012,2]
[352253044,1739019041513,-504.27343023,0.0001012,2]
[352253046,1739019041522,-500.0,0.0001012,2]
[352253048,1739019041532,-641.09,0.0001012,2]
[352253050,1739019041541,-645.26,0.0001012,2]
[352253052,1739019041551,-500.0,0.0001012,2]
[352253054,1739019041559,-1518.89,0.0001012,2]
[352253056,1739019041568,-369.68845529,0.0001012,2]
[352253058,1739019041577,-523.0,0.0001012,2]
[352253060,1739019041587,-343.97441603,0.0001012,2]
[352253062,1739019041596,-1000.0,0.0001012,2]
[352253064,1739019041605,-601.38,0.0001012,2]
[352253066,1739019041614,-500.0,0.0001012,2]
[352253068,1739019041623,-1614.82,0.0001012,2]
[352253070,1739019041632,-500.0,0.0001012,2]
[352253072,1739019041641,-405.56566451,0.0001012,2]
[352253074,1739019041650,-500.0,0.0001012,2]
[352253076,1739019041659,-500.0,0.0001012,2]
[352253078,1739019041668,-500.0,0.0001012,2]
[352253080,1739019041677,-506.31509712,0.0001012,2]
[352253082,1739019041687,-500.0,0.0001012,2]
[352253083,1739019041696,-500.0,0.0001012,2]
[352253085,1739019041706,-924.8,0.0001012,2]
[352253088,1739019041716,-566.77,0.0001012,2]
[352253090,1739019041732,-500.0,0.0001012,2]
[352253092,1739019041741,-584.46,0.0001012,2]
[352253094,1739019041751,-500.0,0.0001012,2]
[352253095,1739019041760,-711.62,0.0001012,2]
[352253097,1739019041770,-500.0,0.0001012,2]
[352253099,1739019041779,-534.43,0.0001012,2]
[352253102,1739019041789,-525.86787186,0.0001012,2]
[352253104,1739019041799,-500.0,0.0001012,2]
[352253106,1739019041808,-500.0,0.0001012,2]
[352253107,1739019041818,-500.0,0.0001012,2]
[352253109,1739019041827,-1238.8,0.0001012,2]
[352253111,1739019041836,-500.0,0.0001012,2]
[352253113,1739019041848,-621.2,0.0001012,2]
[352253115,1739019041857,-500.0,0.0001012,2]
[352253117,1739019041866,-500.0,0.0001012,2]
[352253119,1739019041875,-502.97391673,0.0001012,2]
[352253121,1739019041888,-500.0,0.0001012,2]
[352253123,1739019041897,-500.0,0.0001012,2]
[352253125,1739019041906,-1258.69,0.0001012,2]
[352253127,1739019041915,-843.8,0.0001012,2]